bitfinex-derivatives/quotes_BTCF0:USTF0_20251002
["timestamp","ask_amount","ask_price","bid_price","bid_amount"]
[1759448665774,0.63853831,120370.0,120360.0,0.0830867]
[1759448665968,1.38853831,120370.0,120360.0,0.0830867]
[1759448666275,1.38853831,120370.0,120360.0,0.1056167]
[1759448667977,1.38853831,120370.0,120360.0,0.0830867]
[1759448670181,0.63117831,120370.0,120360.0,0.1195567]
[1759448670471,0.37954806,120370.0,120360.0,0.37118695]
[1759448670679,1.12954806,120370.0,120360.0,0.37118695]
[1759448672476,6.911e-05,120370.0,120360.0,1.0228172]
[1759448673182,0.47554911,120370.0,120360.0,1.0228172]
[1759448673372,6.911e-05,120370.0,120360.0,1.0228172]
[1759448673573,0.75006911,120370.0,120360.0,1.0228172]
[1759448677483,1.02366936,120370.0,120360.0,0.77118695]
[1759448678373,0.75006911,120370.0,120360.0,1.0228172]
[1759448678573,0.25163025,120380.0,120370.0,0.1194872]
[1759448678574,0.02197,120380.0,120370.0,0.1194872]
[1759448678771,0.77189,120380.0,120370.0,0.37111745]
[1759448678976,1.02352025,120380.0,120370.0,0.37111745]
[1759448679176,0.74992,120380.0,120370.0,0.77111745]
[1759448679581,0.27360025,120390.0,120380.0,0.1194821]
[1759448679884,1.04656192,120390.0,120380.0,0.37111235]
[1759448680079,1.02358529,120390.0,120380.0,0.37111235]
[1759448680885,1.04655618,120390.0,120380.0,0.37952054]
[1759448681083,0.27366529,120390.0,120380.0,0.37952054]
[1759448681288,1.02358529,120390.0,120380.0,0.37952054]
[1759448682789,0.27366529,120390.0,120380.0,0.37952054]
[1759448683086,1.02354529,120390.0,120380.0,0.37952054]
[1759448684087,0.74994504,120390.0,120380.0,0.37952054]
[1759448684487,0.74994504,120390.0,120380.0,0.63115079]
[1759448684991,0.74994504,120390.0,120380.0,0.12789029]
[1759448685191,0.74994504,120390.0,120380.0,0.63115079]
[1759448685491,0.74994504,120390.0,120380.0,0.37952054]
[1759448686088,1.00157529,120390.0,120380.0,0.37952054]
[1759448687588,1.02354529,120390.0,120380.0,0.37952054]
[1759448687992,1.00157529,120390.0,120380.0,0.37952054]
[1759448688191,1.00157529,120390.0,120380.0,0.12789029]
[1759448688387,0.74990504,120390.0,120380.0,0.63115079]
[1759448688599,0.74990504,120390.0,120380.0,1.03115079]
[1759448692591,0.3650165,120420.0,120390.0,0.0829999]
[1759448692892,0.40990471,120420.0,120410.0,0.1194614]
[1759448693093,1.15970471,120420.0,120410.0,0.1194614]
[1759448693686,1.22552146,120420.0,120410.0,0.1194614]
[1759448693883,1.47715171,120420.0,120410.0,0.1194614]
[1759448694593,0.07528676,120420.0,120410.0,0.37109165]
[1759448694893,1.41133176,120420.0,120410.0,0.1194614]
[1759448695093,1.38892046,120420.0,120410.0,0.1194614]
[1759448695995,1.3889149,120420.0,120410.0,0.1194614]
[1759448699997,1.3889149,120420.0,120410.0,0.03647]
[1759448700295,1.41127425,120420.0,120410.0,0.1194614]
[1759448701397,0.0829914,120410.0,120400.0,0.0969334]
[1759448701599,0.1113383,120400.0,120390.0,0.0829999]
[1759448701794,1.38723145,120400.0,120390.0,0.0829999]
[1759448701991,0.104979,120390.0,120380.0,0.0830078]
[1759448702192,0.6082395,120390.0,120380.0,0.0830078]
[1759448703098,0.6082395,120390.0,120380.0,0.1057778]
[1759448703503,0.35660925,120390.0,120380.0,0.1057778]
[1759448704000,0.6082395,120390.0,120380.0,0.1057778]
[1759448706098,0.6082395,120390.0,120380.0,0.0830078]
[1759448706501,1.03118299,120390.0,120380.0,0.0830078]
[1759448708705,0.1123421,120380.0,120370.0,0.0830137]
[1759448708902,1.3656426,120380.0,120370.0,0.0830137]
[1759448710304,1.37408112,120380.0,120370.0,0.0830137]
[1759448711702,0.6082426,120380.0,120370.0,0.1057837]
[1759448711909,0.02197,120380.0,120370.0,0.77122395]
[1759448712108,1.65105526,120390.0,120380.0,0.1195921]
[1759448712109,0.02197,120390.0,120380.0,0.1195921]
[1759448712407,0.52157,120390.0,120380.0,0.6228526]
[1759448712801,0.52157,120390.0,120380.0,0.37122235]
[1759448713106,0.77320025,120390.0,120380.0,0.37122235]
[1759448713510,0.85620545,120390.0,120380.0,0.12783998]
[1759448713811,0.85620545,120390.0,120380.0,0.1195921]
[1759448717507,1.1078357,120390.0,120380.0,0.1195921]
[1759448719614,0.1049821,120380.0,120370.0,0.1195937]
[1759448719810,0.6082426,120380.0,120370.0,0.1195937]
[1759448720212,0.35651052,120380.0,120370.0,0.1195937]
[1759448722115,0.35651052,120380.0,120370.0,0.0830137]
[1759448723912,0.104989,120370.0,120360.0,0.1196616]
[1759448724121,1.10699742,120370.0,120360.0,0.1196616]
[1759448724306,0.35651742,120370.0,120360.0,0.1196616]
[1759448724505,1.10699742,120370.0,120360.0,0.1196616]
[1759448726919,0.35651742,120370.0,120360.0,0.1196616]
[1759448727119,1.10695742,120370.0,120360.0,0.1196616]
[1759448729524,1.09699041,120370.0,120360.0,0.1196616]
[1759448729920,0.34655041,120370.0,120360.0,0.1196616]
[1759448730218,1.10336041,120370.0,120360.0,0.0830816]
[1759448731724,1.51172014,120370.0,120360.0,0.0830816]
[1759448732117,1.49715041,120370.0,120360.0,0.1049216]
[1759448732322,0.34655041,120370.0,120360.0,0.1175416]
[1759448733025,1.09715041,120370.0,120360.0,0.1175416]
[1759448733218,0.34655041,120370.0,120360.0,0.1175416]
[1759448733623,1.09727041,120370.0,120360.0,0.1175416]
[1759448735727,1.11184199,120370.0,120360.0,0.0830816]
[1759448735927,1.10364041,120370.0,120360.0,0.0830816]
[1759448736226,1.10360041,120370.0,120360.0,0.0830816]
[1759448736422,1.10360041,120370.0,120360.0,0.1049216]
[1759448737728,0.35292041,120370.0,120360.0,0.1049216]
[1759448737932,1.09723041,120370.0,120360.0,0.1175416]
[1759448739931,0.34655041,120370.0,120360.0,0.1175416]
[1759448740131,1.09723041,120370.0,120360.0,0.1175416]
[1759448740634,1.10360041,120370.0,120360.0,0.0830816]
[1759448743930,1.09363313,120370.0,120360.0,0.0830816]
[1759448745136,1.34516155,120370.0,120360.0,0.0830816]
[1759448745328,1.09363313,120370.0,120360.0,0.0830816]
[1759448746333,1.36814118,120370.0,120360.0,6.08e-05]
[1759448746525,1.76814118,120370.0,120360.0,6.08e-05]
[1759448746722,1.76814224,120370.0,120360.0,6.08e-05]
[1759448748533,1.76802224,120370.0,120360.0,6.08e-05]
[1759448749137,1.01746224,120370.0,120360.0,0.0830867]
[1759448749439,1.76802224,120370.0,120360.0,6.08e-05]
[1759448751133,1.01746224,120370.0,120360.0,6.08e-05]
[1759448751337,1.76798224,120370.0,120360.0,6.08e-05]
[1759448753543,1.01746224,120370.0,120360.0,6.08e-05]
[1759448753743,1.2585154,120370.0,120360.0,0.1049267]
[1759448753946,1.51004382,120370.0,120360.0,0.1175467]
[1759448754439,1.51004382,120370.0,120360.0,0.0957067]
[1759448754637,1.51004382,120370.0,120360.0,0.0830867]
[1759448754946,1.51641382,120370.0,120360.0,0.0830867]
[1759448758142,0.76593382,120370.0,120360.0,0.0830867]
[1759448758344,1.51633382,120370.0,120360.0,0.1059267]
[1759448758647,1.51633382,120370.0,120360.0,6.08e-05]
[1759448759149,1.51633382,120370.0,120360.0,0.0830867]
[1759448759749,1.51636411,120370.0,120360.0,0.0830867]
[1759448763056,1.51628411,120370.0,120360.0,0.0830867]
[1759448766857,1.51628411,120370.0,120360.0,6.08e-05]
[1759448767455,1.76781253,120370.0,120360.0,6.08e-05]
[1759448767951,1.51628411,120370.0,120360.0,6.08e-05]
[1759448768257,1.51628411,120370.0,120360.0,0.0830867]
[1759448768754,1.51628411,120370.0,120360.0,6.08e-05]
[1759448769658,1.76781253,120370.0,120360.0,6.08e-05]
[1759448780272,1.76805659,120370.0,120360.0,6.08e-05]
[1759448780469,2.01970704,120370.0,120360.0,6.08e-05]
[1759448780971,1.76805659,120370.0,120360.0,6.08e-05]
[1759448782975,1.01773659,120370.0,120360.0,6.08e-05]
[1759448783281,1.76785659,120370.0,120360.0,0.0830867]
[1759448783568,1.76785659,120370.0,120360.0,6.08e-05]
[1759448783778,0.37965043,120370.0,120360.0,0.77126715]
[1759448784073,0.04498098,120370.0,120360.0,0.77126715]
[1759448784275,0.77603143,120370.0,120360.0,0.77126715]
[1759448784472,0.29663143,120370.0,120360.0,0.77126715]
[1759448784678,0.29663143,120370.0,120360.0,0.5196167]
[1759448784876,1.04687143,120370.0,120360.0,0.77126715]
[1759448786764,0.29663143,120370.0,120360.0,0.77126715]
[1759448786972,1.04683143,120370.0,120360.0,0.77126715]
[1759448787379,0.29663143,120370.0,120360.0,0.77126715]
[1759448787576,0.02301098,120370.0,120360.0,0.77126715]
[1759448787779,0.22379113,120390.0,120380.0,0.1172321]
[1759448787972,1.13590676,120390.0,120380.0,0.1172321]
[1759448788172,1.13590676,120390.0,120380.0,0.5172321]
[1759448790182,1.11353293,120390.0,120380.0,0.5172321]
[1759448791182,1.11369293,120390.0,120380.0,0.5172321]
[1759448794583,1.19669813,120390.0,120380.0,0.5172321]
[1759448794784,1.1966729,120390.0,120380.0,0.5172321]
[1759448798090,0.3632677,120390.0,120380.0,0.5172321]
[1759448798289,1.1135077,120390.0,120380.0,0.76888255]
[1759448798486,0.02299327,120390.0,120380.0,1.020533]
[1759448798789,0.77331327,120390.0,120380.0,0.76888255]
[1759448798979,1.02496372,120390.0,120380.0,0.76888255]
[1759448799179,1.04631372,120390.0,120380.0,0.76888255]
[1759448800186,0.77331327,120390.0,120380.0,0.76888255]
[1759448800394,0.75032,120390.0,120380.0,1.020533]
[1759448800693,1.00197045,120390.0,120380.0,0.76888255]
[1759448802393,1.00197045,120390.0,120380.0,0.36888255]
[1759448803297,0.75032,120390.0,120380.0,0.36888255]
[1759448806307,0.75032,120390.0,120380.0,0.620533]
[1759448808498,0.75032,120390.0,120380.0,0.1172321]
[1759448808798,0.75032,120390.0,120380.0,0.620533]
[1759448809101,0.02135,120400.0,120390.0,0.1172252]
[1759448809297,0.25165045,120410.0,120400.0,0.1172161]
[1759448809298,0.27300045,120410.0,120400.0,0.1172161]
[1759448809494,0.89852045,120410.0,120400.0,0.1172161]
[1759448815004,0.02135,120410.0,120400.0,0.36886655]
[1759448815204,1.02316045,120410.0,120400.0,0.36886655]
[1759448818512,1.02316045,120410.0,120400.0,0.1172161]
[1759448818712,1.02316045,120410.0,120400.0,0.36886655]
[1759448819411,1.6748109,120410.0,120400.0,0.0829983]
[1759448819622,0.1119503,120400.0,120390.0,0.0830002]
[1759448819813,0.6152512,120400.0,120390.0,0.0830002]
[1759448820616,1.26690165,120400.0,120390.0,0.0830002]
[1759448820813,0.1046,120390.0,120380.0,0.0830079]
[1759448821019,1.3582209,120390.0,120380.0,0.0830079]
[1759448821212,0.1109721,120380.0,120370.0,0.0830144]
[1759448821411,0.614273,120380.0,120370.0,0.0830144]
[1759448822318,0.86592345,120380.0,120370.0,0.0830144]
[1759448822514,1.26592345,120380.0,120370.0,0.0830144]
[1759448822714,0.104609,120370.0,120360.0,0.0968522]
[1759448822918,1.3584699,120370.0,120360.0,0.0968522]
[1759448823216,1.3584699,120370.0,120360.0,0.0830822]
[1759448824623,1.3584699,120370.0,120360.0,6.08e-05]
[1759448824821,1.36668672,120370.0,120360.0,6.08e-05]
[1759448826513,1.76668672,120370.0,120360.0,6.08e-05]
[1759448828123,1.83438361,120370.0,120360.0,6.08e-05]
[1759448829823,1.08382361,120370.0,120360.0,6.08e-05]
[1759448830021,1.83450361,120370.0,120360.0,6.08e-05]
[1759448832227,1.08382361,120370.0,120360.0,0.0830867]
[1759448832423,0.57230589,120370.0,120360.0,0.1197467]
[1759448832624,1.82628679,120370.0,120360.0,0.1197467]
[1759448833024,1.82628679,120370.0,120360.0,0.37139715]
[1759448833025,0.02159,120370.0,120360.0,0.37139715]
[1759448833224,0.97792045,120370.0,120360.0,0.37139715]
[1759448833420,1.06093945,120370.0,120360.0,0.37139715]
[1759448833620,1.06093945,120370.0,120360.0,0.1197467]
[1759448833922,1.10701945,120370.0,120360.0,0.1197467]
[1759448835028,1.02404045,120370.0,120360.0,0.1197467]
[1759448836330,1.10705945,120370.0,120360.0,0.1197467]
[1759448836631,0.855409,120370.0,120360.0,0.1197467]
[1759448836830,1.10705945,120370.0,120360.0,0.1197467]
[1759448837024,0.35625945,120370.0,120360.0,0.1197467]
[1759448837231,1.10705945,120370.0,120360.0,0.1197467]
[1759448838031,0.855409,120370.0,120360.0,0.1197467]
[1759448838231,1.10705945,120370.0,120360.0,0.1197467]
[1759448842334,1.10697999,120370.0,120360.0,0.1197467]
[1759448844734,0.27316099,120370.0,120360.0,0.1197467]
[1759448844934,1.10673999,120370.0,120360.0,0.1197467]
[1759448849326,1.11310999,120370.0,120360.0,0.0830867]
[1759448849531,1.36468098,120370.0,120360.0,0.0830867]
[1759448850637,1.76468098,120370.0,120360.0,6.08e-05]
[1759448852739,0.1050028,120350.0,120340.0,0.1196634]
[1759448852940,1.10709379,120350.0,120340.0,0.1196634]
[1759448853736,1.1154537,120350.0,120340.0,0.1196634]
[1759448853940,1.1228137,120350.0,120340.0,0.0830334]
[1759448854640,1.1228137,120350.0,120340.0,0.1058934]
[1759448854839,1.1154537,120350.0,120340.0,0.1058934]
[1759448855231,1.1228137,120350.0,120340.0,0.0830397]
[1759448855431,0.1050097,120340.0,120330.0,0.1196716]
[1759448855639,1.10722069,120340.0,120330.0,0.1196716]
[1759448857444,1.02418099,120340.0,120330.0,0.1196716]
[1759448857844,0.27354099,120340.0,120330.0,0.1196716]
[1759448858042,1.02426099,120340.0,120330.0,0.1196716]
[1759448858345,0.27354099,120340.0,120330.0,0.1196716]
[1759448858545,0.97030099,120340.0,120330.0,0.1196716]
[1759448858942,1.02426099,120340.0,120330.0,0.1196716]
[1759448859143,1.02422099,120340.0,120330.0,0.1196716]
[1759448859743,0.27354099,120340.0,120330.0,0.1196716]
[1759448859944,1.02426099,120340.0,120330.0,0.1196716]
[1759448860245,0.27354099,120340.0,120330.0,0.1196716]
[1759448860745,0.88914099,120340.0,120330.0,0.1196716]
[1759448861243,1.02422099,120340.0,120330.0,0.1196716]
[1759448861841,0.27354099,120340.0,120330.0,0.1196716]
[1759448862047,0.88734099,120340.0,120330.0,0.1196716]
[1759448863348,1.02422099,120340.0,120330.0,0.1196716]
[1759448864647,0.27354099,120340.0,120330.0,0.1196716]
[1759448864850,1.02422099,120340.0,120330.0,0.1196716]
[1759448869553,0.27354099,120340.0,120330.0,0.1196716]
[1759448869754,1.02414099,120340.0,120330.0,0.1196716]
[1759448870055,0.27354099,120340.0,120330.0,0.1196716]
[1759448870254,0.88278099,120340.0,120330.0,0.1196716]
[1759448873048,0.27354099,120340.0,120330.0,0.1196716]
[1759448873252,7.488e-05,120350.0,120340.0,0.1185397]
[1759448873253,0.02204488,120350.0,120340.0,0.1185397]
[1759448873558,0.02204488,120350.0,120340.0,0.77011069]
[1759448873559,7.488e-05,120350.0,120340.0,0.77011069]
[1759448873758,0.55913,120370.0,120360.0,0.1185259]
[1759448873950,1.02470099,120370.0,120360.0,0.1185259]
[1759448874950,0.77313,120370.0,120360.0,0.1185259]
[1759448876655,0.02197,120380.0,120370.0,0.104229]
[1759448876959,0.77498099,120380.0,120370.0,0.117269]
[1759448877751,0.52341,120380.0,120370.0,0.117269]
[1759448877956,0.77498099,120380.0,120370.0,0.117269]
[1759448883260,0.77498099,120380.0,120370.0,0.083019]
[1759448883859,0.77498099,120380.0,120370.0,0.104229]
[1759448884060,0.77498099,120380.0,120370.0,0.117269]
[1759448884359,0.79787687,120380.0,120370.0,0.117269]
[1759448884558,0.54630588,120380.0,120370.0,0.117269]
[1759448884765,0.79787687,120380.0,120370.0,0.117269]
[1759448887670,0.79787687,120380.0,120370.0,0.083019]
[1759448888173,0.79787687,120380.0,120370.0,0.104229]
[1759448888771,0.77498099,120380.0,120370.0,0.104229]
[1759448889475,0.85799309,120380.0,120370.0,0.104229]
[1759448890464,0.85799309,120380.0,120370.0,0.083019]
[1759448890873,0.85799309,120380.0,120370.0,0.104229]
[1759448891574,0.85799309,120380.0,120370.0,0.117269]
[1759448892375,0.77498099,120380.0,120370.0,0.117269]
[1759448893179,0.85799309,120380.0,120370.0,0.117269]
[1759448897678,0.85799309,120380.0,120370.0,0.083019]
[1759448899275,0.083019,120370.0,120360.0,0.0956607]
[1759448899476,0.61450098,120370.0,120360.0,0.0830259]
[1759448899674,1.01450098,120370.0,120360.0,0.0830259]
[1759448901376,0.76292999,120370.0,120360.0,0.0830259]
[1759448901576,0.77293,120370.0,120360.0,0.36884689]
[1759448901776,0.02197,120370.0,120360.0,0.76884689]
[1759448902081,0.35655649,120380.0,120370.0,0.117269]
[1759448902375,1.3595711,120380.0,120370.0,0.117269]
[1759448902883,1.3597311,120380.0,120370.0,0.117269]
[1759448903483,0.8566655,120380.0,120370.0,0.117269]
[1759448903681,0.6080111,120380.0,120370.0,0.117269]
[1759448903882,1.3596911,120380.0,120370.0,0.117269]
[1759448904482,0.6080111,120380.0,120370.0,0.117269]
[1759448904882,1.3596511,120380.0,120370.0,0.117269]
[1759448906183,0.6080111,120380.0,120370.0,0.117269]
[1759448906380,1.3596111,120380.0,120370.0,0.117269]
[1759448915490,1.3596111,120380.0,120370.0,0.083019]
[1759448915700,0.104989,120370.0,120360.0,0.118099]
[1759448915889,0.6080146,120370.0,120360.0,0.118099]
[1759448916384,0.3565018,120370.0,120360.0,0.118099]
[1759448916584,0.6080146,120370.0,120360.0,0.083019]
[1759448917488,0.0830259,120360.0,120350.0,0.1181086]
[1759448917795,0.0950348,120350.0,120340.0,0.1181145]
[1759448917993,0.3465476,120350.0,120340.0,0.19176178]
[1759448919894,0.5980604,120350.0,120340.0,0.16972178]
[1759448920599,0.5980604,120350.0,120340.0,0.19176178]
[1759448920800,1.3499004,120350.0,120340.0,0.19176178]
[1759448920989,0.3465476,120350.0,120340.0,0.19176178]
[1759448921298,1.0983876,120350.0,120340.0,0.19176178]
[1759448922896,0.3465476,120350.0,120340.0,0.19176178]
[1759448923097,1.0983876,120350.0,120340.0,0.19176178]
[1759448924400,1.0983476,120350.0,120340.0,0.19176178]
[1759448924597,1.0983076,120350.0,120340.0,0.1181145]
[1759448927400,1.3498204,120350.0,120340.0,0.1181145]
[1759448927601,1.3498204,120350.0,120340.0,0.0960745]
[1759448927801,1.3498204,120350.0,120340.0,0.0830345]
[1759448928799,1.35823928,120350.0,120340.0,0.0830345]
[1759448929803,1.33985204,120350.0,120340.0,0.0830345]
[1759448931303,1.34801723,120350.0,120340.0,0.0830345]
[1759448931601,1.33985204,120350.0,120340.0,0.0830345]
[1759448931899,1.33981204,120350.0,120340.0,0.0830345]
[1759448932202,1.33981204,120350.0,120340.0,0.1050745]
[1759448932801,1.33973204,120350.0,120340.0,0.1050745]
[1759448932997,0.77361,120350.0,120340.0,0.13568479]
[1759448933304,0.3565087,120360.0,120350.0,0.1190428]
[1759448933500,1.1082287,120360.0,120350.0,0.3705556]
[1759448933895,1.3597415,120360.0,120350.0,0.1190428]
[1759448934101,1.3598215,120360.0,120350.0,0.1190428]
[1759448942804,1.3671815,120360.0,120350.0,0.0830328]
[1759448943607,1.6186943,120360.0,120350.0,0.0830328]
[1759448944404,1.3671815,120360.0,120350.0,0.0830328]
[1759448945508,1.6186943,120360.0,120350.0,0.0830328]
[1759448946609,1.3671815,120360.0,120350.0,0.0830328]
[1759448946905,1.6186943,120360.0,120350.0,0.0830328]
[1759448947611,2.0186943,120360.0,120350.0,0.0830328]
[1759448947912,1.7671815,120360.0,120350.0,0.0830328]
[1759448948111,0.1050028,120350.0,120340.0,0.1190845]
[1759448948410,0.6080284,120350.0,120340.0,0.1190845]
[1759448951716,0.6080284,120350.0,120340.0,0.0830345]
[1759448953215,0.1050097,120340.0,120330.0,0.1190966]
[1759448953414,1.34950645,120340.0,120330.0,0.19274388]
[1759448954917,1.2767156,120340.0,120330.0,0.19274388]
[1759448955318,0.5249956,120340.0,120330.0,0.19274388]
[1759448955513,1.2767156,120340.0,120330.0,0.19274388]
[1759448955720,1.3597553,120340.0,120330.0,0.1190966]
[1759448956115,0.6080353,120340.0,120330.0,0.1190966]
[1759448956319,1.3597553,120340.0,120330.0,0.1190966]
[1759448956716,0.02197,120340.0,120330.0,0.1190966]
[1759448956915,1.0252428,120340.0,120330.0,0.1190966]
[1759448957219,1.3597953,120340.0,120330.0,0.1190966]
[1759448958122,0.8567697,120340.0,120330.0,0.1190966]
[1759448958420,1.3597953,120340.0,120330.0,0.1190966]
[1759448960120,1.2767556,120340.0,120330.0,0.1190966]
[1759448960821,0.5249956,120340.0,120330.0,0.1190966]
[1759448961023,1.2767156,120340.0,120330.0,0.1190966]
[1759448962020,1.3597553,120340.0,120330.0,0.1190966]
[1759448962219,1.10840058,120340.0,120330.0,0.1190966]
[1759448962716,0.02197,120370.0,120360.0,0.1188359]
[1759448962914,1.10829988,120370.0,120360.0,0.1188359]
[1759448963114,1.13166042,120370.0,120360.0,0.1188359]
[1759448968826,0.05213826,120390.0,120380.0,0.0956321]
[1759448969033,0.05213826,120390.0,120380.0,0.36972298]
[1759448969034,0.81924361,120390.0,120380.0,0.36972298]
[1759448969244,0.79688977,120390.0,120380.0,0.36972298]
[1759448969436,0.79688977,120390.0,120380.0,0.1180521]
[1759448972225,0.79604426,120390.0,120380.0,0.1180521]
[1759448980334,0.04396426,120390.0,120380.0,0.78623361]
[1759448980539,0.02325977,120390.0,120380.0,0.78623361]
[1759448980834,0.2501,120400.0,120390.0,0.1180452]
[1759448981039,0.27335723,120400.0,120390.0,0.1180452]
[1759448983445,0.79599723,120400.0,120390.0,0.36971608]
[1759448986047,0.79599723,120400.0,120390.0,0.1180452]
[1759448987543,1.04766811,120400.0,120390.0,0.1180452]
[1759448987747,1.05403811,120400.0,120390.0,0.0830052]
[1759448988247,1.04766811,120400.0,120390.0,0.1180452]
[1759448990844,0.79599723,120400.0,120390.0,0.1180452]
[1759448991037,1.04766811,120400.0,120390.0,0.0830052]
[1759448991237,1.53703641,120400.0,120390.0,0.0830052]
[1759448991448,1.45403811,120400.0,120390.0,0.0830052]
[1759448991640,1.53703641,120400.0,120390.0,0.0830052]
[1759448991853,1.51377918,120400.0,120390.0,0.0830052]
[1759448996255,1.51349918,120400.0,120390.0,0.0830052]
[1759448998361,1.51345918,120400.0,120390.0,0.0830052]
[1759449000769,0.76165918,120400.0,120390.0,0.0830052]
[1759449001062,1.51345918,120400.0,120390.0,0.0830052]
[1759449007373,1.51317918,120400.0,120390.0,0.0830052]
[1759449009176,0.76165918,120400.0,120390.0,0.0830052]
[1759449009471,0.67866088,120400.0,120390.0,0.0830052]
[1759449009770,1.42369088,120400.0,120390.0,0.1175852]
[1759449009971,0.02062,120400.0,120390.0,0.1175852]
[1759449010166,0.77202,120400.0,120390.0,0.1175852]
[1759449011472,1.02369088,120400.0,120390.0,0.1175852]
[1759449011673,0.27229088,120400.0,120390.0,0.1175852]
[1759449011876,1.02361088,120400.0,120390.0,0.1175852]
[1759449015475,1.04687474,120400.0,120390.0,0.1175852]
[1759449017681,1.02361088,120400.0,120390.0,0.1175852]
[1759449019183,1.51297918,120400.0,120390.0,0.0830052]
[1759449019383,1.51305918,120400.0,120390.0,0.0830052]
[1759449019586,1.02369088,120400.0,120390.0,0.1175852]
[1759449020679,1.02389088,120400.0,120390.0,0.1175852]
[1759449021479,1.01392604,120400.0,120390.0,0.1175852]
[1759449022088,1.09692434,120400.0,120390.0,0.1175852]
[1759449022280,1.34813936,120400.0,120390.0,0.1175852]
[1759449023479,1.37142196,120400.0,120390.0,0.1175852]
[1759449024986,1.37142196,120400.0,120390.0,0.0961352]
[1759449025287,1.37142196,120400.0,120390.0,0.1190352]
[1759449028681,1.37142196,120400.0,120390.0,0.0830052]
[1759449028884,1.34813936,120400.0,120390.0,0.0830052]
[1759449031987,1.34805936,120400.0,120390.0,0.0830052]
[1759449041191,0.59653936,120400.0,120390.0,0.0830052]
[1759449041393,1.37102262,120400.0,120390.0,0.0830052]
[1759449043686,1.37098262,120400.0,120390.0,0.0830052]
[1759449045296,1.62242557,120400.0,120390.0,0.0830052]
[1759449045494,1.37098262,120400.0,120390.0,0.0830052]
[1759449046197,0.03393842,120400.0,120390.0,0.1187052]
[1759449046400,0.15809842,120400.0,120390.0,0.37014815]
[1759449046597,0.38625811,120400.0,120390.0,0.37014815]
[1759449046897,1.01317811,120400.0,120390.0,0.37014815]
[1759449047100,0.26209811,120400.0,120390.0,0.77014815]
[1759449047400,0.93597811,120400.0,120390.0,0.77014815]
[1759449047897,0.93597811,120400.0,120390.0,0.5187052]
[1759449048197,1.18742106,120400.0,120390.0,0.5187052]
[1759449048999,1.18742106,120400.0,120390.0,0.1187052]
[1759449052904,0.51354106,120400.0,120390.0,0.1187052]
[1759449053104,1.26470106,120400.0,120390.0,0.1187052]
[1759449053702,0.75583,120400.0,120390.0,0.37014815]
[1759449053898,0.00467,120400.0,120390.0,0.37014815]
[1759449054198,0.25611295,120400.0,120390.0,0.37014815]
[1759449054406,0.88811295,120400.0,120390.0,0.37014815]
[1759449054602,1.00723295,120400.0,120390.0,0.37014815]
[1759449055302,1.00723295,120400.0,120390.0,0.77014815]
[1759449055699,0.00467,120400.0,120390.0,0.77014815]
[1759449055893,0.65171295,120400.0,120390.0,0.77014815]
[1759449057704,0.40027,120400.0,120390.0,0.77014815]
[1759449057904,0.65171295,120400.0,120390.0,0.77014815]
[1759449059703,0.25611295,120400.0,120390.0,0.5187052]
[1759449059997,0.89663295,120400.0,120390.0,0.77014815]
[1759449061905,0.25611295,120400.0,120390.0,0.77014815]
[1759449062203,0.25611295,120410.0,120400.0,0.1197283]
[1759449062405,1.03076009,120410.0,120400.0,0.37117125]
[1759449062604,1.03092009,120410.0,120400.0,0.37117125]
[1759449063108,1.00719295,120410.0,120400.0,0.37117125]
[1759449066409,1.03087289,120410.0,120400.0,0.37117125]
[1759449068112,0.27979289,120410.0,120400.0,0.37117125]
[1759449068315,1.03079289,120410.0,120400.0,0.37117125]
[1759449068612,1.03079289,120410.0,120400.0,0.37941986]
[1759449069511,1.03079289,120410.0,120400.0,0.12797691]
[1759449069712,0.75559,120410.0,120400.0,0.63086281]
[1759449069916,1.00703295,120410.0,120400.0,0.37941986]
[1759449070920,1.00703295,120410.0,120400.0,0.12797691]
[1759449071121,1.00703295,120410.0,120400.0,0.37941986]
[1759449071323,0.75559,120410.0,120400.0,0.37941986]
[1759449071518,1.00703295,120410.0,120400.0,0.37941986]
[1759449072922,1.00703295,120410.0,120400.0,0.12797691]
[1759449073116,1.00703295,120410.0,120400.0,0.37941986]
[1759449074422,0.75559,120410.0,120400.0,0.37941986]
[1759449074623,1.00703295,120410.0,120400.0,0.37941986]
[1759449074826,1.00703295,120410.0,120400.0,0.63086281]
[1759449076424,0.75559,120410.0,120400.0,0.63086281]
[1759449078622,0.25144295,120420.0,120410.0,0.0969714]
[1759449078830,1.02984256,120420.0,120410.0,0.37116435]
[1759449079122,0.27920256,120420.0,120410.0,0.37116435]
[1759449079328,0.77839961,120420.0,120410.0,0.37116435]
[1759449079525,0.02775961,120420.0,120410.0,0.37116435]
[1759449079724,0.40263961,120420.0,120410.0,0.37116435]
[1759449080426,0.40263961,120420.0,120410.0,0.1197214]
[1759449080727,0.40263961,120420.0,120410.0,0.37116435]
[1759449080929,0.40263961,120420.0,120410.0,0.43720561]
[1759449081627,0.02775961,120420.0,120410.0,0.43720561]
[1759449081823,0.75527,120420.0,120410.0,0.43720561]
[1759449083430,0.00467,120420.0,120410.0,0.43720561]
[1759449084231,0.00467,120420.0,120410.0,0.43704349]
[1759449088230,0.10999484,120440.0,120430.0,0.1184876]
[1759449088427,1.1348896,120440.0,120430.0,0.1184876]
[1759449088629,0.80063777,120440.0,120430.0,0.1184876]
[1759449089134,0.80063777,120440.0,120430.0,0.12668068]
[1759449089531,0.75519,120440.0,120430.0,0.12668068]
[1759449089834,0.8381607,120440.0,120430.0,0.1184876]
[1759449091237,0.8381607,120440.0,120430.0,0.12670692]
[1759449091733,0.00467,120440.0,120430.0,0.37798775]
[1759449091934,0.47294037,120470.0,120460.0,0.03551]
[1759449092134,0.47366705,120470.0,120460.0,0.03551]
[1759449092935,0.087627,120460.0,120450.0,0.096631]
[1759449093138,0.36196592,120460.0,120450.0,0.082961]
[1759449094238,0.33890783,120460.0,120450.0,0.082961]
[1759449094639,0.33890783,120460.0,120450.0,0.096631]
[1759449095339,0.33890783,120460.0,120450.0,0.118471]
[1759449095941,0.33890783,120460.0,120450.0,0.096631]
[1759449098146,0.33890783,120460.0,120450.0,0.118471]
[1759449101747,1.09030783,120460.0,120450.0,0.118471]
[1759449101945,0.77903577,120460.0,120450.0,0.118471]
[1759449102245,0.86199277,120460.0,120450.0,0.118471]
[1759449103146,1.1132736,120460.0,120450.0,0.118471]
[1759449104854,0.77436577,120460.0,120450.0,0.518471]
[1759449105150,0.02702384,120490.0,120480.0,0.1184532]
[1759449105354,0.0274764,120490.0,120480.0,0.1184532]
[1759449105655,0.0274764,120490.0,120480.0,0.5184532]
[1759449106447,0.0274764,120490.0,120480.0,0.76973403]
[1759449107851,0.0274764,120490.0,120480.0,0.5184532]
[1759449108852,0.27875723,120490.0,120480.0,0.18353377]
[1759449111952,0.27875723,120490.0,120480.0,0.1184532]
[1759449112342,0.27875723,120490.0,120480.0,0.03551]
[1759449112343,0.36169353,120490.0,120480.0,0.03551]
[1759449112657,0.36169353,120490.0,120480.0,0.0966132]
[1759449112955,0.36169353,120490.0,120480.0,0.1184532]
[1759449113154,0.27875723,120490.0,120480.0,0.1184532]
[1759449114450,0.36169353,120490.0,120480.0,0.1184532]